[Event "9th RTU Rapid 2019"]
[Site "Riga"]
[Date "2019.08.04"]
[Round "9.8"]
[White "Grinev, Valeriy"]
[Black "Low, Zhen Yu Cyrus"]
[Result "1/2-1/2"]
[ECO "A26"]
[WhiteElo "2287"]
[BlackElo "2169"]
[Annotator "NA"]
[PlyCount "177"]
[EventDate "2019.08.05"]
[EventType "swiss"]
[EventCountry "LAT"]
[SourceTitle "playchess.com"]
[Source "ChessBase"]
[SourceQuality "1"]
[TimeControl "5400+30"]

1. c4 {[%emt 1:15:22]} g6 {[%emt 1:15:22]} 2. e4 {[%emt 0:00:29]} e5 {[%emt 0:00:29]} 3. Nc3 {[%emt 0:00:33]} Bg7 {[%emt 0:00:31]} 4. g3 {[%emt 0:00:28]} Nc6 {[%emt 0:01:01]} 5. Bg2 {[%emt 0:00:29]} Nge7 {[%emt 0:00:31]} 6. Nge2 {[%emt 0:00:30]} O-O {[%emt 0:00:32]} 7. O-O {[%emt 0:00:30]} d6 {[%emt 0:00:45]} 8. d3 {[%emt 0:00:26]} Be6 {[%emt 0:00:26]} 9. Nd5 {[%emt 0:00:28]} Qd7 {[%emt 0:00:49]} 10. Be3 {[%emt 0:00:33]} f5 {[%emt 0:01:03]} 11. Qd2 {[%emt 0:00:50]} Rae8 {[%emt 0:00:49]} 12. Rac1 {[%emt 0:00:40]} Nd8 {[%emt 0:02:53]} 13. b4 {[%emt 0:01:39]} Nc8 {[%emt 0:00:36]} 14. exf5 {[%emt 0:00:38]} Bxf5 {[%emt 0:00:44]} 15. d4 {[%emt 0:00:36]} e4 {[%emt 0:01:49]} 16. Ndc3 {[%emt 0:00:52]} Nb6 {[%emt 0:00:39]} 17. Nd5 {[%emt 0:01:05]} Nxd5 {[%emt 0:02:10]} 18. cxd5 {[%emt 0:00:28]} c6 {[%emt 0:00:26]} 19. Nf4 {[%emt 0:01:48]} Bg4 {[%emt 0:01:15]} 20. Rc2 {[%emt 0:01:27]} Bf3 {[%emt 0:00:30]} 21. Rfc1 {[%emt 0:00:29]} Bxg2 {[%emt 0:01:07]} 22. Kxg2 {[%emt 0:00:27]} cxd5 {[%emt 0:00:34]} 23. Nxd5 {[%emt 0:00:42]} Qf7 {[%emt 0:00:58]} 24. Nc7 {[%emt 0:00:54]} Re7 {[%emt 0:01:06]} 25. d5 {[%emt 0:00:26]} a6 {[%emt 0:00:51]} 26. Qe2 {[%emt 0:01:26]} Qf5 {[%emt 0:00:37]} 27. h3 {[%emt 0:00:29]} h5 {[%emt 0:01:14]} 28. b5 {[%emt 0:03:15]} axb5 {[%emt 0:00:29]} 29. Nxb5 {[%emt 0:00:30]} Nf7 {[%emt 0:00:50]} 30. Rd1 {[%emt 0:00:56]} Be5 {[%emt 0:01:18]} 31. Nd4 {[%emt 0:01:23]} Bxd4 {[%emt 0:00:26]} 32. Rxd4 {[%emt 0:00:38]} Ne5 {[%emt 0:00:52]} 33. Rb4 {[%emt 0:01:44]} Nd3 {[%emt 0:00:44]} 34. Rd4 {[%emt 0:00:29]} h4 {[%emt 0:01:08]} 35. g4 {[%emt 0:01:01]} Qe5 {[%emt 0:00:46]} 36. Rcc4 {[%emt 0:00:35]} b5 {[%emt 0:00:44]} 37. Rxe4 {[%emt 0:00:41]} Qxd5 {[%emt 0:00:41]} 38. Rcd4 {[%emt 0:00:31]} Rxe4 {[%emt 0:00:45]} 39. Rxd5 {[%emt 0:00:49]} Nf4+ {[%emt 0:00:30]} 40. Bxf4 {[%emt 0:00:53]} Rxe2 {[%emt 0:00:26]} 41. Be3 {[%emt 0:00:25]} Rxa2 {[%emt 0:00:41]} 42. Rxb5 {[%emt 0:00:26]} Re8 {[%emt 0:00:37]} 43. Kf3 {[%emt 0:00:28]} Kf7 {[%emt 0:00:30]} 44. Rb6 {[%emt 0:00:38]} Ke6 {[%emt 0:00:31]} 45. Bf4 {[%emt 0:00:41]} Ra3+ {[%emt 0:00:35]} 46. Kg2 {[%emt 0:00:28]} Rd3 {[%emt 0:00:27]} 47. Bg5 {[%emt 0:00:28]} Kd5 {[%emt 0:00:35]} 48. Bxh4 {[%emt 0:00:29]} Kc5 {[%emt 0:00:25]} 49. Rb7 {[%emt 0:00:30]} d5 {[%emt 0:00:27]} 50. Bf6 {[%emt 0:00:32]} Rd2 {[%emt 0:00:32]} 51. Rc7+ {[%emt 0:00:29]} Kd6 {[%emt 0:00:26]} 52. Rg7 {[%emt 0:00:27]} Ree2 {[%emt 0:00:33]} 53. Bh4 {[%emt 0:00:36]} Re6 {[%emt 0:00:25]} 54. Bg3+ {[%emt 0:00:33]} Kc5 {[%emt 0:00:29]} 55. h4 {[%emt 0:00:40]} d4 {[%emt 0:00:31]} 56. Rc7+ {[%emt 0:00:29]} Kd5 {[%emt 0:00:29]} 57. h5 {[%emt 0:00:39]} gxh5 {[%emt 0:00:28]} 58. gxh5 {[%emt 0:00:26]} Rd1 {[%emt 0:00:36]} 59. Bf4 {[%emt 0:00:33]} Ke4 {[%emt 0:00:26]} 60. Rf7 {[%emt 0:00:32]} d3 {[%emt 0:00:37]} 61. Be3 {[%emt 0:00:26]} Re1 {[%emt 0:00:36]} 62. Rf4+ {[%emt 0:00:33]} Ke5 {[%emt 0:00:28]} 63. Kf3 {[%emt 0:00:39]} Rh1 {[%emt 0:00:30]} 64. Re4+ {[%emt 0:00:37]} Kf5 {[%emt 0:00:26]} 65. Rf4+ {[%emt 0:00:32]} Ke5 {[%emt 0:00:25]} 66. Ra4 {[%emt 0:00:41]} Kf6 {[%emt 0:00:41]} 67. h6 {[%emt 0:00:31]} Rh3+ {[%emt 0:00:26]} 68. Kg2 {[%emt 0:00:40]} Rh5 {[%emt 0:00:32]} 69. Rd4 {[%emt 0:00:29]} Rxe3 {[%emt 0:00:33]} 70. fxe3 {[%emt 0:00:27]} Rxh6 {[%emt 0:00:27]} 71. Rxd3 {[%emt 0:00:29]} Ke5 {[%emt 0:00:27]} 72. Rd4 {[%emt 0:00:26]} Ra6 {[%emt 0:00:30]} 73. Rb4 {[%emt 0:00:28]} Ra5 {[%emt 0:00:31]} 74. Kf3 {[%emt 0:00:26]} Ke6 {[%emt 0:00:26]} 75. Rb6+ {[%emt 0:00:31]} Ke5 {[%emt 0:00:26]} 76. Rh6 {[%emt 0:00:26]} Ra4 {[%emt 0:00:27]} 77. Rh5+ {[%emt 0:00:27]} Ke6 {[%emt 0:00:25]} 78. e4 {[%emt 0:00:26]} Ra1 {[%emt 0:00:26]} 79. Rb5 {[%emt 0:00:28]} Rf1+ {[%emt 0:00:26]} 80. Ke2 {[%emt 0:00:26]} Rh1 {[%emt 0:00:27]} 81. Ke3 {[%emt 0:00:26]} Re1+ {[%emt 0:00:26]} 82. Kd3 {[%emt 0:00:26]} Rd1+ {[%emt 0:00:26]} 83. Ke2 {[%emt 0:00:26]} Rh1 {[%emt 0:00:25]} 84. Rg5 {[%emt 0:00:27]} Rh3 {[%emt 0:00:28]} 85. Kf2 {[%emt 0:00:28]} Ra3 {[%emt 0:00:26]} 86. Rc5 {[%emt 0:00:27]} Rb3 {[%emt 0:00:26]} 87. Rf5 {[%emt 0:00:28]} Ra3 {[%emt 0:00:27]} 88. Rf3 {[%emt 0:00:26]} Rxf3+ {[%emt 0:00:28]} 89. Kxf3 {[%emt 0:00:01]} 1/2-1/2

[Event "9th RTU Rapid 2019"]
[Site "Riga"]
[Date "2019.08.04"]
[Round "9.9"]
[White "Wagner, Dennis"]
[Black "Raghavi, N.."]
[Result "1-0"]
[ECO "B00"]
[WhiteElo "2473"]
[BlackElo "2068"]
[Annotator "ChessBase"]
[PlyCount "67"]
[EventDate "2019.08.05"]
[EventType "swiss"]
[EventCountry "LAT"]
[SourceTitle "playchess.com"]
[Source "ChessBase"]
[SourceQuality "1"]
[TimeControl "5400+30"]

1. d4 {[%emt 1:15:22]} b6 {[%emt 1:15:30]} 2. e4 {[%emt 0:00:27]} Bb7 {[%emt 0:00:26]} 3. Bd3 {[%emt 0:00:26]} Nf6 {[%emt 0:00:45]} 4. Nd2 {[%emt 0:00:38]} e6 {[%emt 0:00:49]} 5. Ngf3 {[%emt 0:01:12]} c5 {[%emt 0:02:25]} 6. c3 {[%emt 0:00:26]} Be7 {[%emt 0:00:59]} 7. O-O {[%emt 0:00:28]} cxd4 {[%emt 0:01:22]} 8. cxd4 {[%emt 0:00:27]} O-O {[%emt 0:00:28]} 9. Re1 {[%emt 0:00:31]} Nc6 {[%emt 0:01:15]} 10. a3 {[%emt 0:00:27]} d6 {[%emt 0:00:39]} 11. b4 {[%emt 0:00:34]} e5 {[%emt 0:01:38]} 12. d5 {[%emt 0:01:02]} Nb8 {[%emt 0:00:34]} 13. Bb2 {[%emt 0:00:26]} Nbd7 {[%emt 0:00:53]} 14. Rc1 {[%emt 0:00:46]} a5 {[%emt 0:01:10]} 15. Bb5 {[%emt 0:00:27]} axb4 {[%emt 0:01:13]} 16. axb4 {[%emt 0:00:27]} Qb8 {[%emt 0:01:03]} 17. Nc4 {[%emt 0:01:01]} Rc8 {[%emt 0:00:40]} 18. Nfd2 {[%emt 0:00:28]} Ba6 {[%emt 0:01:08]} 19. Bc6 {[%emt 0:01:06]} Ra7 {[%emt 0:01:11]} 20. b5 {[%emt 0:00:28]} Bb7 {[%emt 0:00:29]} 21. f4 {[%emt 0:00:38]} exf4 {[%emt 0:00:47]} 22. Nf3 {[%emt 0:01:29]} Ba8 {[%emt 0:00:37]} 23. Qd2 {[%emt 0:00:47]} Nc5 {[%emt 0:01:28]} 24. e5 {[%emt 0:01:38]} Nb3 {[%emt 0:00:49]} 25. Qd1 {[%emt 0:00:47]} Nxd5 {[%emt 0:01:50]} 26. Qxd5 {[%emt 0:00:46]} Nxc1 {[%emt 0:01:06]} 27. exd6 {[%emt 0:00:27]} Bxd6 {[%emt 0:00:35]} 28. Nxd6 {[%emt 0:00:29]} Rd8 {[%emt 0:00:29]} 29. Qe5 {[%emt 0:02:07]} f6 {[%emt 0:01:03]} 30. Qe6+ {[%emt 0:00:27]} Kf8 {[%emt 0:01:04]} 31. Ba3 {[%emt 0:01:19]} Nd3 {[%emt 0:00:46]} 32. Nb7+ {[%emt 0:01:40]} Rxa3 {[%emt 0:00:32]} 33. Qe7+ {[%emt 0:00:30]} Kg8 {[%emt 0:00:32]} 34. Nxd8 {[%emt 0:00:29]} 1-0

[Event "9th RTU Rapid 2019"]
[Site "Riga"]
[Date "2019.08.04"]
[Round "9.10"]
[White "Kopylov, Michael"]
[Black "Stabulnieks, Klavs"]
[Result "1-0"]
[ECO "E60"]
[WhiteElo "2414"]
[BlackElo "2136"]
[Annotator "NA"]
[PlyCount "97"]
[EventDate "2019.08.05"]
[EventType "swiss"]
[EventCountry "LAT"]
[SourceTitle "playchess.com"]
[Source "ChessBase"]
[SourceQuality "1"]
[TimeControl "5400+30"]

1. d4 {[%emt 1:15:21]} Nf6 {[%emt 1:15:21]} 2. c4 {[%emt 0:00:25]} g6 {[%emt 0:00:27]} 3. g3 {[%emt 0:00:26]} Bg7 {[%emt 0:00:26]} 4. Bg2 {[%emt 0:00:26]} d6 {[%emt 0:00:27]} 5. Nf3 {[%emt 0:00:27]} O-O {[%emt 0:00:27]} 6. O-O {[%emt 0:00:01]} Nc6 7. Nc3 {[%emt 0:00:59]} Bf5 {[%emt 0:00:57]} 8. d5 {[%emt 0:00:28]} Na5 {[%emt 0:00:26]} 9. Nd4 {[%emt 0:00:26]} Bd7 {[%emt 0:00:27]} 10. b3 {[%emt 0:00:26]} c5 {[%emt 0:00:26]} 11. dxc6 {[%emt 0:00:26]} Nxc6 {[%emt 0:00:27]} 12. Bb2 {[%emt 0:00:26]} Qb6 {[%emt 0:01:45]} 13. e3 {[%emt 0:01:56]} a5 14. Ndb5 {[%emt 0:01:16]} Rfc8 15. Rc1 {[%emt 0:03:20]} Ne5 {[%emt 0:04:59]} 16. Na4 Qa6 {[%emt 0:00:31]} 17. Qe2 {[%emt 0:01:53]} Bc6 {[%emt 0:01:43]} 18. Rfd1 {[%emt 0:05:40]} Ned7 {[%emt 0:00:21]} 19. e4 {[%emt 0:00:00]} Nb6 {[%emt 0:01:19]} 20. Nac3 {[%emt 0:00:00]} a4 {[%emt 0:00:45]} 21. b4 {[%emt 0:00:00]} Bd7 {[%emt 0:01:13]} 22. e5 {[%emt 0:01:42]} dxe5 {[%emt 0:02:34]} 23. c5 {[%emt 0:00:35]} a3 {[%emt 0:05:20]} 24. Nxa3 {[%emt 0:01:40]} Qxe2 {[%emt 0:01:01]} 25. Nxe2 {[%emt 0:00:26]} Na4 {[%emt 0:00:26]} 26. Bxe5 {[%emt 0:00:40]} Bc6 {[%emt 0:00:42]} 27. Nc4 {[%emt 0:00:28]} e6 {[%emt 0:00:54]} 28. Nd6 {[%emt 0:01:00]} Rd8 {[%emt 0:00:28]} 29. Nxb7 {[%emt 0:00:42]} Rxd1+ {[%emt 0:00:27]} 30. Rxd1 {[%emt 0:00:26]} Nd5 {[%emt 0:00:32]} 31. Bxg7 {[%emt 0:00:53]} Kxg7 {[%emt 0:00:27]} 32. Na5 {[%emt 0:00:39]} Bd7 {[%emt 0:00:36]} 33. c6 {[%emt 0:01:28]} Bc8 {[%emt 0:00:26]} 34. Bxd5 {[%emt 0:00:45]} exd5 {[%emt 0:00:26]} 35. Rxd5 {[%emt 0:00:28]} Be6 {[%emt 0:00:29]} 36. Rd2 {[%emt 0:00:46]} Rb8 {[%emt 0:00:26]} 37. a3 {[%emt 0:00:34]} Nb6 {[%emt 0:00:38]} 38. Nf4 {[%emt 0:00:45]} Bf5 {[%emt 0:00:33]} 39. f3 {[%emt 0:00:29]} h5 {[%emt 0:00:28]} 40. Kf2 {[%emt 0:00:35]} Re8 {[%emt 0:00:32]} 41. Nb7 {[%emt 0:00:53]} Re5 {[%emt 0:00:30]} 42. Nd6 {[%emt 0:00:29]} Bc8 {[%emt 0:00:31]} 43. Nxc8 {[%emt 0:00:26]} Nxc8 {[%emt 0:00:26]} 44. Rc2 {[%emt 0:00:27]} Kf6 {[%emt 0:00:31]} 45. a4 {[%emt 0:00:30]} Ke7 {[%emt 0:00:28]} 46. b5 {[%emt 0:00:27]} Kd6 {[%emt 0:00:28]} 47. Rd2+ {[%emt 0:00:29]} Kc7 {[%emt 0:00:36]} 48. Rd7+ {[%emt 0:00:27]} Kb6 {[%emt 0:00:26]} 49. Rxf7 {[%emt 0:00:31]} 1-0

[Event "9th RTU Rapid 2019"]
[Site "Riga"]
[Date "2019.08.04"]
[Round "9.11"]
[White "Maltsevskaya, Aleksandra"]
[Black "Ioannidis, Evgenios"]
[Result "1-0"]
[ECO "A07"]
[WhiteElo "2321"]
[BlackElo "2134"]
[Annotator "NA"]
[PlyCount "79"]
[EventDate "2019.08.05"]
[EventType "swiss"]
[EventCountry "LAT"]
[SourceTitle "playchess.com"]
[Source "ChessBase"]
[SourceQuality "1"]
[TimeControl "5400+30"]

1. Nf3 {[%emt 1:15:25]} d5 {[%emt 1:15:35]} 2. g3 {[%emt 0:00:30]} Nc6 {[%emt 0:00:43]} 3. Bg2 {[%emt 0:00:30]} h5 {[%emt 0:00:30]} 4. d4 {[%emt 0:00:42]} Bg4 {[%emt 0:00:45]} 5. h3 {[%emt 0:00:49]} Bxf3 {[%emt 0:00:30]} 6. Bxf3 {[%emt 0:00:30]} Qd7 {[%emt 0:00:34]} 7. Nc3 {[%emt 0:00:30]} e6 {[%emt 0:01:13]} 8. Bf4 {[%emt 0:00:34]} Bb4 {[%emt 0:00:43]} 9. Qd2 {[%emt 0:01:13]} Nge7 {[%emt 0:01:50]} 10. a3 {[%emt 0:00:52]} Ba5 {[%emt 0:00:30]} 11. O-O-O {[%emt 0:03:39]} O-O-O {[%emt 0:00:34]} 12. Qd3 {[%emt 0:01:07]} f6 {[%emt 0:01:10]} 13. Na4 {[%emt 0:00:55]} e5 {[%emt 0:01:58]} 14. dxe5 {[%emt 0:00:42]} fxe5 {[%emt 0:00:37]} 15. Bg5 {[%emt 0:01:04]} e4 {[%emt 0:04:25]} 16. Bxe4 {[%emt 0:03:44]} dxe4 {[%emt 0:00:30]} 17. Qxe4 {[%emt 0:00:30]} Nd4 {[%emt 0:00:51]} 18. Nc5 {[%emt 0:01:20]} Qd5 {[%emt 0:00:41]} 19. Qxd5 {[%emt 0:02:33]} Rxd5 {[%emt 0:00:30]} 20. Bxe7 {[%emt 0:00:08]} Re8 {[%emt 0:00:30]} 21. Rxd4 {[%emt 0:02:35]} Rxd4 {[%emt 0:00:30]} 22. Nb3 {[%emt 0:00:30]} Rd5 {[%emt 0:02:20]} 23. Bc5 {[%emt 0:00:45]} Rxe2 {[%emt 0:01:15]} 24. c4 {[%emt 0:00:34]} Rde5 {[%emt 0:00:30]} 25. Be3 {[%emt 0:00:33]} c6 {[%emt 0:01:51]} 26. Rd1 {[%emt 0:00:34]} Bc7 {[%emt 0:00:33]} 27. Nd4 {[%emt 0:00:30]} R2xe3 {[%emt 0:00:54]} 28. fxe3 {[%emt 0:00:30]} c5 {[%emt 0:00:48]} 29. Nb5 {[%emt 0:00:32]} Rxe3 {[%emt 0:00:30]} 30. Rf1 {[%emt 0:00:30]} Be5 {[%emt 0:00:31]} 31. Rf8+ {[%emt 0:00:30]} Kd7 {[%emt 0:00:30]} 32. Rf7+ {[%emt 0:00:30]} Ke6 {[%emt 0:00:30]} 33. Rxb7 {[%emt 0:00:30]} Rxg3 {[%emt 0:00:30]} 34. b4 {[%emt 0:00:30]} Rxh3 {[%emt 0:00:43]} 35. bxc5 {[%emt 0:00:30]} Rh1+ {[%emt 0:00:30]} 36. Kc2 {[%emt 0:00:30]} h4 {[%emt 0:00:34]} 37. c6 {[%emt 0:00:30]} h3 {[%emt 0:00:30]} 38. c7 {[%emt 0:00:30]} Kd7 {[%emt 0:00:38]} 39. c5 {[%emt 0:00:33]} Kc8 {[%emt 0:00:38]} 40. Rb8+ {[%emt 0:00:30]} 1-0

[Event "9th RTU Rapid 2019"]
[Site "Riga"]
[Date "2019.08.04"]
[Round "9.12"]
[White "Mota, Pankit"]
[Black "Kiik, Kalle"]
[Result "0-1"]
[ECO "C55"]
[WhiteElo "1841"]
[BlackElo "2308"]
[Annotator "NA"]
[PlyCount "44"]
[EventDate "2019.08.05"]
[EventType "swiss"]
[EventCountry "LAT"]
[SourceTitle "playchess.com"]
[Source "ChessBase"]
[SourceQuality "1"]
[TimeControl "5400+30"]

1. e4 {[%emt 1:15:23]} e5 {[%emt 1:15:24]} 2. Nf3 {[%emt 0:00:26]} Nc6 {[%emt 0:00:27]} 3. Bc4 {[%emt 0:00:30]} Nf6 {[%emt 0:00:52]} 4. d3 {[%emt 0:00:27]} h6 {[%emt 0:01:03]} 5. c3 {[%emt 0:00:28]} d6 {[%emt 0:00:36]} 6. O-O {[%emt 0:00:29]} g6 {[%emt 0:00:54]} 7. a4 {[%emt 0:00:29]} Bg7 {[%emt 0:00:28]} 8. a5 {[%emt 0:00:37]} O-O {[%emt 0:00:34]} 9. Re1 {[%emt 0:00:27]} Be6 {[%emt 0:00:53]} 10. Nbd2 {[%emt 0:01:57]} Kh7 {[%emt 0:00:36]} 11. b4 {[%emt 0:00:42]} a6 {[%emt 0:00:30]} 12. Qb3 {[%emt 0:00:35]} Qd7 {[%emt 0:00:32]} 13. Bb2 {[%emt 0:02:12]} Nh5 {[%emt 0:00:36]} 14. Rad1 {[%emt 0:00:38]} Nf4 {[%emt 0:00:41]} 15. Bxe6 {[%emt 0:01:56]} fxe6 {[%emt 0:00:34]} 16. Nc4 {[%emt 0:00:42]} Qf7 {[%emt 0:01:51]} 17. b5 {[%emt 0:01:00]} axb5 {[%emt 0:00:41]} 18. Qxb5 {[%emt 0:00:26]} Nxg2 {[%emt 0:00:35]} 19. Kxg2 {[%emt 0:02:55]} Qxf3+ {[%emt 0:00:27]} 20. Kg1 {[%emt 0:00:28]} Qxf2+ {[%emt 0:00:58]} 21. Kh1 {[%emt 0:00:27]} Qf3+ {[%emt 0:00:28]} 22. Kg1 {[%emt 0:00:27]} Qg4+ {[%emt 0:00:28]} 0-1

[Event "9th RTU Rapid 2019"]
[Site "Riga"]
[Date "2019.08.04"]
[Round "9.13"]
[White "Lavendelis, Egons"]
[Black "Laimins, Lauris"]
[Result "1-0"]
[ECO "B03"]
[WhiteElo "2292"]
[BlackElo "2123"]
[Annotator "NA"]
[PlyCount "71"]
[EventDate "2019.08.05"]
[EventType "swiss"]
[EventCountry "LAT"]
[SourceTitle "playchess.com"]
[Source "ChessBase"]
[SourceQuality "1"]
[TimeControl "5400+30"]

1. e4 {[%emt 1:15:21]} Nf6 {[%emt 1:15:26]} 2. e5 {[%emt 0:00:26]} Nd5 {[%emt 0:00:26]} 3. d4 {[%emt 0:00:26]} d6 {[%emt 0:00:27]} 4. c4 {[%emt 0:00:27]} Nb6 {[%emt 0:00:26]} 5. exd6 {[%emt 0:00:27]} exd6 {[%emt 0:00:32]} 6. Bd3 {[%emt 0:00:39]} Nc6 {[%emt 0:00:38]} 7. Ne2 {[%emt 0:00:32]} Nb4 {[%emt 0:01:24]} 8. O-O {[%emt 0:00:45]} Nxd3 {[%emt 0:00:39]} 9. Qxd3 {[%emt 0:00:26]} Be7 {[%emt 0:00:29]} 10. Nbc3 {[%emt 0:00:49]} O-O {[%emt 0:00:28]} 11. Bf4 {[%emt 0:01:15]} c6 {[%emt 0:00:37]} 12. Ng3 {[%emt 0:00:33]} Be6 {[%emt 0:02:44]} 13. d5 {[%emt 0:00:39]} cxd5 {[%emt 0:00:30]} 14. cxd5 {[%emt 0:00:26]} Bd7 {[%emt 0:01:42]} 15. Nge4 {[%emt 0:01:56]} Bf5 {[%emt 0:00:39]} 16. Rad1 {[%emt 0:01:01]} Rc8 {[%emt 0:00:48]} 17. Qg3 {[%emt 0:00:30]} Bxe4 {[%emt 0:05:52]} 18. Nxe4 {[%emt 0:00:27]} Rc4 {[%emt 0:00:28]} 19. Bh6 {[%emt 0:02:44]} Bf6 {[%emt 0:00:25]} 20. Nxd6 {[%emt 0:00:27]} Rc2 {[%emt 0:01:29]} 21. Nf5 {[%emt 0:01:16]} g6 {[%emt 0:00:46]} 22. Bxf8 {[%emt 0:01:17]} Kxf8 {[%emt 0:00:27]} 23. Qa3+ {[%emt 0:01:09]} Kg8 {[%emt 0:00:27]} 24. Ne3 {[%emt 0:00:45]} Rxb2 {[%emt 0:00:35]} 25. Qxa7 {[%emt 0:00:27]} Nd7 {[%emt 0:00:32]} 26. Rb1 {[%emt 0:00:46]} Rxb1 {[%emt 0:00:32]} 27. Rxb1 {[%emt 0:00:26]} b6 {[%emt 0:00:25]} 28. Rc1 {[%emt 0:00:52]} Bd4 {[%emt 0:00:53]} 29. Qc7 {[%emt 0:00:51]} Qe7 {[%emt 0:00:42]} 30. Qf4 {[%emt 0:00:29]} Bc5 {[%emt 0:00:39]} 31. g3 {[%emt 0:00:32]} Ne5 {[%emt 0:00:31]} 32. Rd1 {[%emt 0:00:42]} b5 {[%emt 0:01:03]} 33. Ng4 {[%emt 0:00:43]} Nc4 {[%emt 0:00:30]} 34. Qf6 {[%emt 0:00:48]} Qf8 {[%emt 0:01:20]} 35. Qc3 {[%emt 0:00:58]} Qd6 {[%emt 0:01:20]} 36. Re1 {[%emt 0:01:16]} 1-0

[Event "9th RTU Rapid 2019"]
[Site "Riga"]
[Date "2019.08.04"]
[Round "9.14"]
[White "Dubrovin, Robert"]
[Black "Germanovs, Georgijs"]
[Result "1-0"]
[ECO "A57"]
[WhiteElo "2282"]
[BlackElo "1911"]
[Annotator "NA"]
[PlyCount "105"]
[EventDate "2019.08.05"]
[EventType "swiss"]
[EventCountry "LAT"]
[SourceTitle "playchess.com"]
[Source "ChessBase"]
[SourceQuality "1"]
[TimeControl "5400+30"]

1. d4 {[%emt 1:15:21]} Nf6 {[%emt 1:15:21]} 2. c4 {[%emt 0:00:26]} c5 {[%emt 0:00:26]} 3. d5 {[%emt 0:00:26]} b5 {[%emt 0:00:26]} 4. cxb5 {[%emt 0:00:28]} a6 {[%emt 0:00:26]} 5. e3 {[%emt 0:00:44]} Bb7 {[%emt 0:00:47]} 6. Nc3 {[%emt 0:00:29]} axb5 {[%emt 0:00:27]} 7. Bxb5 {[%emt 0:00:34]} g6 {[%emt 0:00:31]} 8. Nf3 {[%emt 0:00:38]} Bg7 {[%emt 0:00:27]} 9. O-O {[%emt 0:00:36]} O-O {[%emt 0:00:28]} 10. d6 {[%emt 0:01:02]} exd6 {[%emt 0:00:39]} 11. Qxd6 {[%emt 0:00:35]} Ng4 {[%emt 0:01:13]} 12. Qf4 {[%emt 0:02:04]} h5 {[%emt 0:00:38]} 13. h3 {[%emt 0:00:35]} Nf6 {[%emt 0:00:44]} 14. e4 {[%emt 0:00:47]} d5 {[%emt 0:00:35]} 15. e5 {[%emt 0:01:22]} Ne4 {[%emt 0:00:40]} 16. Nxe4 {[%emt 0:01:08]} dxe4 {[%emt 0:00:27]} 17. Nd2 {[%emt 0:00:30]} Qd5 {[%emt 0:00:44]} 18. Nc4 {[%emt 0:01:02]} Nd7 {[%emt 0:00:58]} 19. Be3 {[%emt 0:01:40]} Nxe5 {[%emt 0:00:46]} 20. Nb6 {[%emt 0:00:44]} Qe6 {[%emt 0:00:51]} 21. Nxa8 {[%emt 0:00:26]} Bxa8 {[%emt 0:00:39]} 22. Bxc5 {[%emt 0:00:46]} Rc8 {[%emt 0:00:29]} 23. Be3 {[%emt 0:00:34]} Rc2 {[%emt 0:01:25]} 24. Rfd1 {[%emt 0:01:40]} Rxb2 {[%emt 0:01:11]} 25. a4 {[%emt 0:01:27]} Kh7 {[%emt 0:00:47]} 26. Rac1 {[%emt 0:01:20]} Bd5 {[%emt 0:01:10]} 27. Rd2 {[%emt 0:01:25]} Rb3 {[%emt 0:00:57]} 28. Rcd1 {[%emt 0:00:28]} Bb7 {[%emt 0:00:49]} 29. Rd6 {[%emt 0:00:33]} Qe7 {[%emt 0:01:11]} 30. Bf1 {[%emt 0:01:36]} Bc6 {[%emt 0:01:29]} 31. a5 {[%emt 0:00:28]} Ra3 {[%emt 0:01:11]} 32. a6 {[%emt 0:00:26]} Ba4 {[%emt 0:00:26]} 33. Qxe4 {[%emt 0:01:21]} Bxd1 {[%emt 0:00:36]} 34. Rxd1 {[%emt 0:00:30]} f5 {[%emt 0:04:13]} 35. Qb7 {[%emt 0:00:37]} Qf6 {[%emt 0:01:07]} 36. a7 {[%emt 0:01:22]} Qc6 {[%emt 0:01:00]} 37. Qxc6 {[%emt 0:00:48]} Nxc6 {[%emt 0:00:27]} 38. Rd7 {[%emt 0:00:26]} Ra1 {[%emt 0:00:39]} 39. Rc7 {[%emt 0:00:33]} Nxa7 {[%emt 0:01:02]} 40. Bxa7 {[%emt 0:00:45]} Rd1 {[%emt 0:00:44]} 41. Be3 {[%emt 0:00:32]} Kg8 {[%emt 0:00:35]} 42. h4 {[%emt 0:00:26]} Be5 {[%emt 0:00:39]} 43. Rc8+ {[%emt 0:00:40]} Kf7 {[%emt 0:00:34]} 44. g3 {[%emt 0:00:26]} Kg7 {[%emt 0:00:48]} 45. Kg2 {[%emt 0:00:27]} Bd6 {[%emt 0:00:32]} 46. Rd8 {[%emt 0:00:42]} Kf6 {[%emt 0:00:37]} 47. Bf4 {[%emt 0:00:37]} Ke7 {[%emt 0:00:28]} 48. Rxd6 {[%emt 0:00:26]} Rxd6 {[%emt 0:00:26]} 49. Bxd6+ {[%emt 0:00:26]} Kxd6 {[%emt 0:00:27]} 50. Bc4 {[%emt 0:00:29]} Ke5 {[%emt 0:00:26]} 51. Bf7 {[%emt 0:00:26]} Kf6 {[%emt 0:00:27]} 52. Be8 {[%emt 0:00:27]} Kg7 {[%emt 0:00:34]} 53. Kf3 {[%emt 0:00:26]} 1-0